fUST/lending_fUST_20260508
["ID","MTS","AMOUNT","RATE_DAILY","PERIOD"]
[421861850,1778243439000,-500.0,0.00011506,2]
[421861851,1778243439000,-500.0,0.00011506,2]
[421861852,1778243439000,-500.0,0.00011506,2]
[421861854,1778243439000,-500.0,0.00011506,2]
[421861858,1778243439000,-500.0,0.00011506,2]
[421861853,1778243439000,-500.0,0.00011506,2]
[421861856,1778243439000,-500.0,0.00011506,2]
[421861855,1778243439000,-500.0,0.00011506,2]
[421861857,1778243439000,-500.0,0.00011506,2]
[421861869,1778243439000,-500.0,0.00011506,2]
[421861871,1778243439000,-1024.44,0.00011506,2]
[421861847,1778243439000,-500.0,0.00011506,2]
[421861895,1778243439000,-500.0,0.0001178,2]
[421861884,1778243439000,-1908.09,0.00011506,2]
[421861893,1778243439000,-701.9201,0.0001178,2]
[421861926,1778243439000,-500.0,0.0001178,2]
[421861927,1778243439000,-446.28,0.0001178,2]
[421861928,1778243439000,-500.0,0.0001178,2]
[421861929,1778243439000,-500.0,0.0001178,2]
[421861935,1778243439000,-160.0,0.00011903,2]
[421861933,1778243439000,-633.19,0.0001178,2]
[421861934,1778243439000,-1239.33,0.0001178,2]
[421861937,1778243439000,-160.0,0.00011903,2]
[421861945,1778243439000,-500.0,0.00012054,2]
[421861946,1778243439000,-500.0,0.00012054,2]
[421861947,1778243439000,-615.1768,0.00012054,2]
[421861936,1778243439000,-161.58879827,0.00011903,2]
[421861938,1778243439000,-160.0,0.00011903,2]
[421861925,1778243439000,-629.84,0.0001178,2]
[421861939,1778243439000,-420.0,0.00011945,2]
[421861940,1778243439000,-720.0,0.00011957,2]
[421861944,1778243439000,-442.0,0.00011965,2]
[421861941,1778243439000,-2208.121,0.00011965,2]
[421861942,1778243439000,-645.978,0.00011965,2]
[421861953,1778243439000,-500.0,0.00012054,2]
[421861956,1778243439000,-500.0,0.00012054,2]
[421861954,1778243439000,-500.0,0.00012054,2]
[421861950,1778243439000,-500.0,0.00012054,2]
[421861951,1778243439000,-500.0,0.00012054,2]
[421861955,1778243439000,-500.0,0.00012054,2]
[421861949,1778243439000,-500.0,0.00012054,2]
[421861948,1778243439000,-500.0,0.00012054,2]
[421861896,1778243439000,-211.49,0.0001178,2]
[421861943,1778243439000,-1411.0,0.00011965,2]
[421861932,1778243439000,-1908.09,0.0001178,2]
[421861952,1778243439000,-590.36941241,0.00012054,2]
[421861931,1778243439000,-527.84,0.0001178,2]
[421861923,1778243439000,-548.66,0.0001178,2]
[421861907,1778243439000,-751.84,0.0001178,2]
[421861901,1778243439000,-500.0,0.0001178,2]
[421861900,1778243439000,-500.0,0.0001178,2]
[421861902,1778243439000,-500.0,0.0001178,2]
[421861909,1778243439000,-500.0,0.0001178,2]
[421861906,1778243439000,-500.0,0.0001178,2]
[421861898,1778243439000,-500.0,0.0001178,2]
[421861897,1778243439000,-364.54,0.0001178,2]
[421861904,1778243439000,-500.0,0.0001178,2]
[421861899,1778243439000,-500.0,0.0001178,2]
[421861908,1778243439000,-1064.73,0.0001178,2]
[421861903,1778243439000,-500.0,0.0001178,2]
[421861910,1778243439000,-639.68,0.0001178,2]
[421861905,1778243439000,-500.0,0.0001178,2]
[421861920,1778243439000,-500.0,0.0001178,2]
[421861912,1778243439000,-6188.83,0.0001178,2]
[421861930,1778243439000,-782.59,0.0001178,2]
[421861924,1778243439000,-500.0,0.0001178,2]
[421861922,1778243439000,-500.0,0.0001178,2]
[421861921,1778243439000,-500.0,0.0001178,2]
[421861917,1778243439000,-500.0,0.0001178,2]
[421861918,1778243439000,-500.0,0.0001178,2]
[421861919,1778243439000,-1024.44,0.0001178,2]
[421861916,1778243439000,-500.0,0.0001178,2]
[421861911,1778243439000,-698.91,0.0001178,2]
[421861915,1778243439000,-508.25,0.0001178,2]
[421861913,1778243439000,-500.0,0.0001178,2]
[421861914,1778243439000,-1297.48,0.0001178,2]
[421861997,1778243440000,-500.0,0.00012328,2]
[421862009,1778243440000,-1024.44,0.00012328,2]
[421862008,1778243440000,-500.0,0.00012328,2]
[421862001,1778243440000,-639.68,0.00012328,2]
[421862007,1778243440000,-500.0,0.00012328,2]
[421861995,1778243440000,-500.0,0.00012328,2]
[421861990,1778243440000,-500.0,0.00012328,2]
[421861992,1778243440000,-500.0,0.00012328,2]
[421861988,1778243440000,-500.0,0.00012328,2]
[421861993,1778243440000,-564.48,0.00012328,2]
[421861994,1778243440000,-500.0,0.00012328,2]
[421861991,1778243440000,-500.0,0.00012328,2]
[421861998,1778243440000,-751.84,0.00012328,2]
[421862006,1778243440000,-508.25,0.00012328,2]
[421862003,1778243440000,-6188.83,0.00012328,2]
[421861999,1778243440000,-1064.73,0.00012328,2]
[421862004,1778243440000,-500.0,0.00012328,2]
[421862002,1778243440000,-698.91,0.00012328,2]
[421861996,1778243440000,-500.0,0.00012328,2]
[421862005,1778243440000,-1297.48,0.00012328,2]
[421862012,1778243440000,-500.0,0.00012328,2]
[421862013,1778243440000,-548.66,0.00012328,2]
[421862014,1778243440000,-500.0,0.00012328,2]
[421862015,1778243440000,-754.5854,0.00012328,2]
[421862022,1778243440000,-1908.09,0.00012328,2]
[421862021,1778243440000,-527.84,0.00012328,2]
[421861989,1778243440000,-500.0,0.00012328,2]
[421862018,1778243440000,-500.0,0.00012328,2]
[421862000,1778243440000,-500.0,0.00012328,2]
[421861986,1778243440000,-500.0,0.00012328,2]
[421861967,1778243440000,-508.25,0.00012054,2]
[421861984,1778243440000,-633.19,0.00012054,2]
[421862017,1778243440000,-500.0,0.00012328,2]
[421861960,1778243440000,-1064.73,0.00012054,2]
[421861957,1778243440000,-500.0,0.00012054,2]
[421861958,1778243440000,-500.0,0.00012054,2]
[421861959,1778243440000,-751.84,0.00012054,2]
[421861964,1778243440000,-6188.83,0.00012054,2]
[421861961,1778243440000,-500.0,0.00012054,2]
[421861963,1778243440000,-698.91,0.00012054,2]
[421861970,1778243440000,-500.0,0.00012054,2]
[421861968,1778243440000,-225.55,0.00012054,2]
[421861966,1778243440000,-1297.48,0.00012054,2]
[421861973,1778243440000,-500.0,0.00012054,2]
[421861965,1778243440000,-500.0,0.00012054,2]
[421861987,1778243440000,-500.0,0.00012328,2]
[421861969,1778243440000,-500.0,0.00012054,2]
[421861971,1778243440000,-1024.44,0.00012054,2]
[421861974,1778243440000,-500.0,0.00012054,2]
[421861972,1778243440000,-500.0,0.00012054,2]
[421861976,1778243440000,-500.0,0.00012054,2]
[421861975,1778243440000,-548.66,0.00012054,2]
[421861977,1778243440000,-629.84,0.00012054,2]
[421861978,1778243440000,-500.0,0.00012054,2]
[421861979,1778243440000,-500.0,0.00012054,2]
[421861982,1778243440000,-527.84,0.00012054,2]
[421861981,1778243440000,-782.59,0.00012054,2]
[421861980,1778243440000,-500.0,0.00012054,2]
[421861985,1778243440000,-1239.33,0.00012054,2]
[421861983,1778243440000,-1908.09,0.00012054,2]
[421861962,1778243440000,-639.68,0.00012054,2]
[421862016,1778243440000,-629.84,0.00012328,2]
[421862010,1778243440000,-500.0,0.00012328,2]
[421862011,1778243440000,-500.0,0.00012328,2]
[421862055,1778243440000,-661.3337,0.00012602,2]
[421862052,1778243440000,-548.66,0.00012602,2]
[421862056,1778243440000,-500.0,0.00012602,2]
[421862057,1778243440000,-500.0,0.00012602,2]
[421862060,1778243440000,-527.84,0.00012602,2]
[421862058,1778243440000,-500.0,0.00012602,2]
[421862061,1778243440000,-1908.09,0.00012602,2]
[421862059,1778243440000,-782.59,0.00012602,2]
[421862062,1778243440000,-633.19,0.00012602,2]
[421862064,1778243440000,-432.25481108,0.00012779,2]
[421862068,1778243440000,-500.0,0.00012876,2]
[421862069,1778243440000,-500.0,0.00012876,2]
[421862063,1778243440000,-1239.33,0.00012602,2]
[421862051,1778243440000,-500.0,0.00012602,2]
[421862070,1778243440000,-500.0,0.00012876,2]
[421862066,1778243440000,-500.0,0.00012876,2]
[421862073,1778243440000,-500.0,0.00012876,2]
[421862072,1778243440000,-500.0,0.00012876,2]
[421862071,1778243440000,-500.0,0.00012876,2]
[421862067,1778243440000,-500.0,0.00012876,2]
[421862075,1778243440000,-751.84,0.00012876,2]
[421862074,1778243440000,-500.0,0.00012876,2]
[421862077,1778243440000,-500.0,0.00012876,2]
[421862076,1778243440000,-1064.73,0.00012876,2]
[421862079,1778243440000,-698.91,0.00012876,2]
[421862078,1778243440000,-639.68,0.00012876,2]
[421862083,1778243440000,-508.25,0.00012876,2]
[421862081,1778243440000,-500.0,0.00012876,2]
[421862065,1778243440000,-500.0,0.00012876,2]
[421862053,1778243440000,-500.0,0.00012602,2]
[421862082,1778243440000,-1297.48,0.00012876,2]
[421862047,1778243440000,-500.0,0.00012602,2]
[421862054,1778243440000,-629.84,0.00012602,2]
[421862019,1778243440000,-500.0,0.00012328,2]
[421862020,1778243440000,-782.59,0.00012328,2]
[421862036,1778243440000,-500.0,0.00012602,2]
[421862035,1778243440000,-500.0,0.00012602,2]
[421862025,1778243440000,-174.33936917,0.00012415,2]
[421862031,1778243440000,-500.0,0.00012602,2]
[421862024,1778243440000,-1239.33,0.00012328,2]
[421862027,1778243440000,-500.0,0.00012602,2]
[421862080,1778243440000,-6188.83,0.00012876,2]
[421862032,1778243440000,-500.0,0.00012602,2]
[421862033,1778243440000,-438.21,0.00012602,2]
[421862034,1778243440000,-500.0,0.00012602,2]
[421862026,1778243440000,-500.0,0.00012602,2]
[421862030,1778243440000,-500.0,0.00012602,2]
[421862023,1778243440000,-633.19,0.00012328,2]
[421862029,1778243440000,-500.0,0.00012602,2]
[421862028,1778243440000,-500.0,0.00012602,2]
[421862050,1778243440000,-500.0,0.00012602,2]
[421862048,1778243440000,-1024.44,0.00012602,2]
[421862049,1778243440000,-500.0,0.00012602,2]
[421862046,1778243440000,-500.0,0.00012602,2]
[421862045,1778243440000,-508.25,0.00012602,2]
[421862038,1778243440000,-1064.73,0.00012602,2]
[421862043,1778243440000,-500.0,0.00012602,2]
[421862042,1778243440000,-6188.83,0.00012602,2]
[421862041,1778243440000,-698.91,0.00012602,2]
[421862040,1778243440000,-639.68,0.00012602,2]
[421862039,1778243440000,-500.0,0.00012602,2]
[421862037,1778243440000,-751.84,0.00012602,2]
[421862044,1778243440000,-1297.48,0.00012602,2]
[421862136,1778243441000,-508.25,0.0001315,2]
[421862148,1778243441000,-527.84,0.0001315,2]
[421862147,1778243441000,-782.59,0.0001315,2]
[421862138,1778243441000,-1024.44,0.0001315,2]
[421862118,1778243441000,-500.0,0.0001315,2]
[421862129,1778243441000,-698.91,0.0001315,2]
[421862133,1778243441000,-500.0,0.0001315,2]
[421862116,1778243441000,-500.0,0.0001315,2]
[421862120,1778243441000,-500.0,0.0001315,2]
[421862114,1778243441000,-500.0,0.0001315,2]
[421862122,1778243441000,-751.84,0.0001315,2]
[421862135,1778243441000,-1297.48,0.0001315,2]
[421862146,1778243441000,-500.0,0.0001315,2]
[421862142,1778243441000,-506.25,0.0001315,2]
[421862139,1778243441000,-500.0,0.0001315,2]
[421862149,1778243441000,-1908.09,0.0001315,2]
[421862140,1778243441000,-500.0,0.0001315,2]
[421862144,1778243441000,-500.0,0.0001315,2]
[421862131,1778243441000,-6188.83,0.0001315,2]
[421862141,1778243441000,-548.66,0.0001315,2]
[421862143,1778243441000,-629.84,0.0001315,2]
[421862145,1778243441000,-500.0,0.0001315,2]
[421862151,1778243441000,-1239.33,0.0001315,2]
[421862150,1778243441000,-633.19,0.0001315,2]
[421862154,1778243441000,-500.0,0.00013225,2]
[421862156,1778243441000,-500.0,0.00013424,2]
[421862161,1778243441000,-500.0,0.00013424,2]
[421862152,1778243441000,-864.0,0.00013153,2]
[421862137,1778243441000,-500.0,0.0001315,2]
[421862112,1778243441000,-500.0,0.0001315,2]
[421862109,1778243441000,-500.0,0.0001315,2]
[421862125,1778243441000,-500.0,0.0001315,2]
[421862155,1778243441000,-186.18086464,0.00013365,14]
[421862088,1778243441000,-500.0,0.00012876,2]
[421862089,1778243441000,-500.0,0.00012876,2]
[421862087,1778243441000,-517.58,0.00012876,2]
[421862084,1778243441000,-198.41,0.00012876,2]
[421862085,1778243441000,-500.0,0.00012876,2]
[421862086,1778243441000,-1024.44,0.00012876,2]
[421862090,1778243441000,-548.66,0.00012876,2]
[421862093,1778243441000,-500.0,0.00012876,2]
[421862092,1778243441000,-629.84,0.00012876,2]
[421862094,1778243441000,-500.0,0.00012876,2]
[421862096,1778243441000,-782.59,0.00012876,2]
[421862101,1778243441000,-822.0,0.00012893,2]
[421862127,1778243441000,-639.68,0.0001315,2]
[421862100,1778243441000,-1239.33,0.00012876,2]
[421862102,1778243441000,-822.0,0.00012893,2]
[421862098,1778243441000,-1908.09,0.00012876,2]
[421862099,1778243441000,-633.19,0.00012876,2]
[421862103,1778243441000,-5095.39474927,0.000129,2]
[421862091,1778243441000,-500.0,0.00012876,2]
[421862105,1778243441000,-5095.39474924,0.000129,2]
[421862104,1778243441000,-5095.39474924,0.000129,2]
[421862108,1778243441000,-186.84,0.0001315,2]
[421862107,1778243441000,-500.0,0.0001315,2]
[421862110,1778243441000,-500.0,0.0001315,2]
[421862111,1778243441000,-500.0,0.0001315,2]
[421862106,1778243441000,-587.0,0.00013128,2]
[421862123,1778243441000,-1064.73,0.0001315,2]
[421862095,1778243441000,-500.0,0.00012876,2]
[421862097,1778243441000,-527.84,0.00012876,2]
[421862162,1778243441000,-500.0,0.00013424,2]
[421862159,1778243441000,-500.0,0.00013424,2]
[421862195,1778243441000,-767.4,0.00013698,2]
[421862192,1778243441000,-174.33936917,0.00013697,2]
[421862190,1778243441000,-10000.0,0.0001352,2]
[421862204,1778243441000,-767.4,0.00013698,2]
[421862203,1778243441000,-767.4,0.00013698,2]
[421862193,1778243441000,-767.4,0.00013698,2]
[421862198,1778243441000,-767.4,0.00013698,2]
[421862197,1778243441000,-767.4,0.00013698,2]
[421862200,1778243441000,-767.4,0.00013698,2]
[421862199,1778243441000,-767.4,0.00013698,2]
[421862205,1778243441000,-767.4,0.00013698,2]
[421862207,1778243441000,-1000.0,0.00013698,2]
[421862206,1778243441000,-767.4,0.00013698,2]
[421862202,1778243441000,-767.4,0.00013698,2]
[421862214,1778243441000,-227.082544,0.00013698,2]
[421862217,1778243441000,-543.5018298,0.00013698,2]
[421862208,1778243441000,-874.39418742,0.00013698,2]
[421862216,1778243441000,-500.0,0.00013698,2]
[421862210,1778243441000,-500.0,0.00013698,2]
[421862212,1778243441000,-500.0,0.00013698,2]
[421862213,1778243441000,-500.0,0.00013698,2]
[421862211,1778243441000,-500.0,0.00013698,2]
[421862220,1778243441000,-151.0,0.00013698,2]
[421862219,1778243441000,-17644.61233445,0.00013698,3]
[421862222,1778243441000,-500.0,0.00013698,2]
[421862221,1778243441000,-500.0,0.00013698,2]
[421862223,1778243441000,-500.0,0.00013698,2]
[421862160,1778243441000,-500.0,0.00013424,2]
[421862215,1778243441000,-500.0,0.00013698,2]
[421862191,1778243441000,-10000.0,0.0001362,2]
[421862209,1778243441000,-500.0,0.00013698,2]
[421862186,1778243441000,-633.19,0.00013424,2]
[421862158,1778243441000,-500.0,0.00013424,2]
[421862201,1778243441000,-767.4,0.00013698,2]
[421862153,1778243441000,-822.0,0.00013162,2]
[421862157,1778243441000,-500.0,0.00013424,2]
[421862164,1778243441000,-500.0,0.00013424,2]
[421862172,1778243441000,-1297.48,0.00013424,2]
[421862173,1778243441000,-508.25,0.00013424,2]
[421862174,1778243441000,-500.0,0.00013424,2]
[421862166,1778243441000,-1064.73,0.00013424,2]
[421862175,1778243441000,-1024.44,0.00013424,2]
[421862163,1778243441000,-500.0,0.00013424,2]
[421862165,1778243441000,-751.84,0.00013424,2]
[421862171,1778243441000,-500.0,0.00013424,2]
[421862169,1778243441000,-698.91,0.00013424,2]
[421862170,1778243441000,-6188.83,0.00013424,2]
[421862176,1778243441000,-500.0,0.00013424,2]
[421862187,1778243441000,-1239.33,0.00013424,2]
[421862184,1778243441000,-527.84,0.00013424,2]
[421862167,1778243441000,-500.0,0.00013424,2]
[421862185,1778243441000,-1908.09,0.00013424,2]
[421862189,1778243441000,-454.23,0.000135,2]
[421862188,1778243441000,-527.44732724,0.00013436,2]
[421862183,1778243441000,-782.59,0.00013424,2]
[421862178,1778243441000,-548.66,0.00013424,2]
[421862179,1778243441000,-629.84,0.00013424,2]
[421862182,1778243441000,-500.0,0.00013424,2]
[421862181,1778243441000,-500.0,0.00013424,2]
[421862177,1778243441000,-500.0,0.00013424,2]
[421862168,1778243441000,-639.68,0.00013424,2]
[421862180,1778243441000,-500.0,0.00013424,2]
[421862272,1778243442000,-500.0,0.00013698,2]
[421862264,1778243442000,-279.99420755,0.00013698,2]
[421862265,1778243442000,-216.36950007,0.00013698,2]
[421862262,1778243442000,-500.0,0.00013698,2]
[421862261,1778243442000,-500.0,0.00013698,2]
[421862263,1778243442000,-500.0,0.00013698,2]
[421862249,1778243442000,-500.0,0.00013698,2]
[421862269,1778243442000,-500.0,0.00013698,2]
[421862270,1778243442000,-500.0,0.00013698,2]
[421862260,1778243442000,-500.0,0.00013698,2]
[421862259,1778243442000,-500.0,0.00013698,2]
[421862268,1778243442000,-500.0,0.00013698,2]
[421862271,1778243442000,-500.0,0.00013698,2]
[421862266,1778243442000,-545.37520092,0.00013698,2]
[421862288,1778243442000,-691.09,0.00013698,2]
[421862273,1778243442000,-522.32628688,0.00013698,2]
[421862274,1778243442000,-500.0,0.00013698,2]
[421862275,1778243442000,-691.09,0.00013698,2]
[421862277,1778243442000,-691.09,0.00013698,2]
[421862276,1778243442000,-691.09,0.00013698,2]
[421862285,1778243442000,-691.09,0.00013698,2]
[421862284,1778243442000,-691.09,0.00013698,2]
[421862282,1778243442000,-691.09,0.00013698,2]
[421862278,1778243442000,-691.09,0.00013698,2]
[421862280,1778243442000,-691.09,0.00013698,2]
[421862281,1778243442000,-691.09,0.00013698,2]
[421862283,1778243442000,-691.09,0.00013698,2]
[421862279,1778243442000,-691.09,0.00013698,2]
[421862258,1778243442000,-500.0,0.00013698,2]
[421862267,1778243442000,-500.0,0.00013698,2]
[421862248,1778243442000,-500.0,0.00013698,2]
[421862231,1778243442000,-500.0,0.00013698,2]
[421862250,1778243442000,-500.0,0.00013698,2]
[421862286,1778243442000,-691.09,0.00013698,2]
[421862230,1778243442000,-500.0,0.00013698,2]
[421862232,1778243442000,-500.0,0.00013698,2]
[421862225,1778243442000,-500.0,0.00013698,2]
[421862229,1778243442000,-500.0,0.00013698,2]
[421862224,1778243442000,-500.0,0.00013698,2]
[421862227,1778243442000,-500.0,0.00013698,2]
[421862228,1778243442000,-154.11777834,0.00013698,2]
[421862233,1778243442000,-500.0,0.00013698,2]
[421862235,1778243442000,-500.0,0.00013698,2]
[421862234,1778243442000,-500.0,0.00013698,2]
[421862236,1778243442000,-500.0,0.00013698,2]
[421862241,1778243442000,-500.0,0.00013698,2]
[421862245,1778243442000,-500.0,0.00013698,2]
[421862239,1778243442000,-500.0,0.00013698,2]
[421862240,1778243442000,-453.17191654,0.00013698,2]
[421862244,1778243442000,-500.0,0.00013698,2]
[421862237,1778243442000,-500.0,0.00013698,2]
[421862238,1778243442000,-500.0,0.00013698,2]
[421862243,1778243442000,-500.0,0.00013698,2]
[421862242,1778243442000,-500.0,0.00013698,2]
[421862247,1778243442000,-500.0,0.00013698,2]
[421862252,1778243442000,-500.0,0.00013698,2]
[421862246,1778243442000,-500.0,0.00013698,2]
[421862253,1778243442000,-500.0,0.00013698,2]
[421862254,1778243442000,-500.0,0.00013698,2]
[421862255,1778243442000,-532.69864627,0.00013698,2]
[421862256,1778243442000,-500.0,0.00013698,2]
[421862251,1778243442000,-500.0,0.00013698,2]
[421862257,1778243442000,-500.0,0.00013698,2]
[421862297,1778243442000,-691.09,0.00013698,2]
[421862226,1778243442000,-500.0,0.00013698,2]
[421862299,1778243442000,-691.09,0.00013698,2]
[421862324,1778243442000,-500.0,0.00013698,2]
[421862331,1778243442000,-500.0,0.00013698,2]
[421862330,1778243442000,-1024.44,0.00013698,2]
[421862340,1778243442000,-569.06,0.00013698,2]
[421862341,1778243442000,-569.06,0.00013698,2]
[421862336,1778243442000,-500.0,0.00013698,2]
[421862342,1778243442000,-569.06,0.00013698,2]
[421862333,1778243442000,-548.66,0.00013698,2]
[421862332,1778243442000,-500.0,0.00013698,2]
[421862334,1778243442000,-629.84,0.00013698,2]
[421862338,1778243442000,-500.0,0.00013698,2]
[421862335,1778243442000,-500.0,0.00013698,2]
[421862339,1778243442000,-782.59,0.00013698,2]
[421862344,1778243442000,-569.06,0.00013698,2]
[421862325,1778243442000,-6188.83,0.00013698,2]
[421862343,1778243442000,-569.06,0.00013698,2]
[421862347,1778243442000,-569.06,0.00013698,2]
[421862353,1778243442000,-569.06,0.00013698,2]
[421862350,1778243442000,-569.06,0.00013698,2]
[421862354,1778243442000,-1908.09,0.00013698,2]
[421862356,1778243442000,-569.06,0.00013698,2]
[421862357,1778243442000,-569.06,0.00013698,2]
[421862355,1778243442000,-569.06,0.00013698,2]
[421862361,1778243442000,-569.06,0.00013698,2]
[421862369,1778243442000,-569.06,0.00013698,2]
[421862359,1778243442000,-569.06,0.00013698,2]
[421862363,1778243442000,-569.06,0.00013698,2]
[421862365,1778243442000,-569.06,0.00013698,2]
[421862367,1778243442000,-569.06,0.00013698,2]
[421862289,1778243442000,-691.09,0.00013698,2]
[421862351,1778243442000,-527.84,0.00013698,2]
[421862323,1778243442000,-500.0,0.00013698,2]
[421862371,1778243442000,-569.06,0.00013698,2]
[421862322,1778243442000,-500.0,0.00013698,2]
[421862326,1778243442000,-184.18,0.00013698,2]
[421862300,1778243442000,-691.16146466,0.00013698,2]
[421862291,1778243442000,-691.09,0.00013698,2]
[421862293,1778243442000,-691.09,0.00013698,2]
[421862292,1778243442000,-691.09,0.00013698,2]
[421862294,1778243442000,-691.09,0.00013698,2]
[421862295,1778243442000,-691.09,0.00013698,2]
[421862296,1778243442000,-691.09,0.00013698,2]
[421862313,1778243442000,-500.0,0.00013698,2]
[421862314,1778243442000,-500.0,0.00013698,2]
[421862302,1778243442000,-500.0,0.00013698,2]
[421862304,1778243442000,-332.39933123,0.00013698,2]
[421862306,1778243442000,-751.84,0.00013698,2]
[421862305,1778243442000,-500.0,0.00013698,2]
[421862311,1778243442000,-500.0,0.00013698,2]
[421862290,1778243442000,-691.09,0.00013698,2]
[421862308,1778243442000,-500.0,0.00013698,2]
[421862315,1778243442000,-500.0,0.00013698,2]
[421862319,1778243442000,-500.0,0.00013698,2]
[421862320,1778243442000,-500.0,0.00013698,2]
[421862329,1778243442000,-493.75,0.00013698,2]
[421862328,1778243442000,-508.25,0.00013698,2]
[421862318,1778243442000,-500.0,0.00013698,2]
[421862321,1778243442000,-500.0,0.00013698,2]
[421862327,1778243442000,-1297.48,0.00013698,2]
[421862317,1778243442000,-500.0,0.00013698,2]
[421862312,1778243442000,-500.0,0.00013698,2]
[421862307,1778243442000,-1064.73,0.00013698,2]
[421862309,1778243442000,-639.68,0.00013698,2]
[421862310,1778243442000,-698.91,0.00013698,2]
[421862316,1778243442000,-500.0,0.00013698,2]
[421862412,1778243443000,-508.25,0.00013972,2]
[421862422,1778243443000,-782.59,0.00013972,2]
[421862413,1778243443000,-1024.44,0.00013972,2]
[421862415,1778243443000,-447.29,0.00013972,2]
[421862414,1778243443000,-500.0,0.00013972,2]
[421862404,1778243443000,-751.84,0.00013972,2]
[421862405,1778243443000,-1064.73,0.00013972,2]
[421862402,1778243443000,-500.0,0.00013972,2]
[421862410,1778243443000,-1297.48,0.00013972,2]
[421862417,1778243443000,-629.84,0.00013972,2]
[421862406,1778243443000,-500.0,0.00013972,2]
[421862407,1778243443000,-639.68,0.00013972,2]
[421862401,1778243443000,-500.0,0.00013972,2]
[421862424,1778243443000,-1908.09,0.00013972,2]
[421862416,1778243443000,-548.66,0.00013972,2]
[421862423,1778243443000,-527.84,0.00013972,2]
[421862421,1778243443000,-500.0,0.00013972,2]
[421862419,1778243443000,-500.0,0.00013972,2]
[421862425,1778243443000,-633.19,0.00013972,2]
[421862426,1778243443000,-1239.33,0.00013972,2]
[421862428,1778243443000,-1560.0,0.00014044,2]
[421862430,1778243443000,-500.0,0.00014089,2]
[421862429,1778243443000,-500.0,0.00014089,2]
[421862435,1778243443000,-500.0,0.00014246,2]
[421862432,1778243443000,-767.4,0.00014245,2]
[421862431,1778243443000,-822.0,0.00014122,2]
[421862408,1778243443000,-698.91,0.00013972,2]
[421862440,1778243443000,-500.0,0.00014246,2]
[421862420,1778243443000,-500.0,0.00013972,2]
[421862409,1778243443000,-6188.83,0.00013972,2]
[421862392,1778243443000,-5000.0,0.00013797,2]
[421862398,1778243443000,-151.0,0.00013972,2]
[421862434,1778243443000,-594.98856796,0.00014245,2]
[421862378,1778243443000,-633.19,0.00013698,2]
[421862382,1778243443000,-151.0,0.00013699,2]
[421862381,1778243443000,-151.0,0.00013699,2]
[421862380,1778243443000,-1000.0,0.00013699,2]
[421862379,1778243443000,-1239.33,0.00013698,2]
[421862372,1778243443000,-569.06,0.00013698,2]
[421862376,1778243443000,-569.06,0.00013698,2]